[Event "Rapid della Domenica"]
[Site "Chess.com"]
[Date "2020.05.17"]
[Round "5"]
[White "SanSecondoPR"]
[Black "sirmale49"]
[Result "1-0"]
[WhiteElo "1299"]
[BlackElo "1422"]
[TimeControl "720+3"]
[EndTime "8:12:20 PDT"]
[Termination "SanSecondoPR ha vinto per abbandono"]

1. e4 {[%clk 0:12:02.9]} 1... e5 {[%clk 0:11:55.9]} 2. d4 {[%clk 0:11:59.1]}
2... exd4 {[%clk 0:11:51.6]} 3. c3 {[%clk 0:11:58.3]} 3... dxc3 {[%clk
0:11:52.8]} 4. Bc4 {[%clk 0:11:57.6]} 4... Qe7 {[%clk 0:11:43.5]} 5. Nxc3 {[%clk
0:11:53.5]} 5... Nc6 {[%clk 0:11:43.5]} 6. Nf3 {[%clk 0:11:51.5]} 6... h6 {[%clk
0:11:39.3]} 7. O-O {[%clk 0:11:51.2]} 7... Ne5 {[%clk 0:11:40]} 8. Nxe5 {[%clk
0:11:39.2]} 8... Qxe5 {[%clk 0:11:40.7]} 9. Nd5 {[%clk 0:11:32.7]} 9... c6
{[%clk 0:11:20.2]} 10. Bf4 {[%clk 0:11:30.9]} 10... cxd5 {[%clk 0:10:32]} 11.
Bxe5 {[%clk 0:11:28.7]} 11... dxc4 {[%clk 0:10:33.4]} 12. Qd4 {[%clk 0:11:11.3]}
12... Ne7 {[%clk 0:10:14.1]} 13. Bxg7 {[%clk 0:11:04.5]} 13... Bxg7 {[%clk
0:10:12.5]} 14. Qxg7 {[%clk 0:11:03.7]} 14... Rg8 {[%clk 0:10:13.8]} 15. Qe5
{[%clk 0:10:49.6]} 15... d6 {[%clk 0:10:11.7]} 16. Qb5+ {[%clk 0:10:49.3]} 16...
Bd7 {[%clk 0:10:11.9]} 17. Qxb7 {[%clk 0:10:47.9]} 17... Rd8 {[%clk 0:10:11.2]}
18. Rfd1 {[%clk 0:10:31.9]} 18... Bc6 {[%clk 0:09:58.5]} 19. Qxa7 {[%clk
0:10:25.2]} 19... Bxe4 {[%clk 0:09:58.5]} 20. Qa4+ {[%clk 0:10:19.9]} 20... Kf8
{[%clk 0:09:52.8]} 21. f3 {[%clk 0:10:13.9]} 21... Bxf3 {[%clk 0:09:51.8]} 22.
Rd2 {[%clk 0:10:12]} 22... d5 {[%clk 0:09:26.6]} 23. Kf1 {[%clk 0:09:54.2]}
23... Be4 {[%clk 0:09:20.5]} 24. Re1 {[%clk 0:09:43.1]} 24... Bd3+ {[%clk
0:09:19]} 25. Rxd3 {[%clk 0:09:38.7]} 25... cxd3 {[%clk 0:09:13.7]} 26. Qb4
{[%clk 0:09:32.2]} 26... Rd7 {[%clk 0:09:02.5]} 27. Qd2 {[%clk 0:09:26.9]} 27...
Rg6 {[%clk 0:08:46.4]} 28. Qxd3 {[%clk 0:09:26.1]} 28... d4 {[%clk 0:08:23.9]}
29. a4 {[%clk 0:09:19.7]} 29... Rd5 {[%clk 0:08:14.2]} 30. b4 {[%clk 0:09:17.6]}
30... Rf5+ {[%clk 0:08:06.2]} 31. Kg1 {[%clk 0:09:11]} 31... Rfg5 {[%clk
0:08:01.1]} 32. g3 {[%clk 0:09:06.8]} 32... Nd5 {[%clk 0:07:56.3]} 33. Qxd4
{[%clk 0:08:46.7]} 33... h5 {[%clk 0:07:48]} 34. b5 {[%clk 0:08:17.1]} 34... Nf6
{[%clk 0:07:22.1]} 35. b6 {[%clk 0:08:04.3]} 35... Rd5 {[%clk 0:06:58.8]} 36.
Qb4+ {[%clk 0:07:57.5]} 36... Kg7 {[%clk 0:06:55.5]} 37. b7 {[%clk 0:07:48.3]}
37... h4 {[%clk 0:06:21.9]} 38. b8=Q {[%clk 0:07:37.6]} 38... Nd7 {[%clk
0:06:03.1]} 39. Qb2+ {[%clk 0:07:29.5]} 39... Nf6 {[%clk 0:05:52.7]} 40. Qa1
{[%clk 0:07:01.5]} 40... hxg3 {[%clk 0:05:49.2]} 41. hxg3 {[%clk 0:06:55]} 41...
Rdg5 {[%clk 0:05:40.2]} 42. Re3 {[%clk 0:06:46.9]} 42... Kh6 {[%clk 0:05:25.3]}
43. Qh8+ {[%clk 0:06:37]} 43... Nh7 {[%clk 0:05:26.3]} 44. Kg2 {[%clk
0:06:13.2]} 44... Rg7 {[%clk 0:05:19.9]} 45. Qc8 {[%clk 0:05:49.2]} 45... R7g6
{[%clk 0:05:00]} 46. Qh1+ {[%clk 0:05:42.7]} 46... Rh5 {[%clk 0:04:58.7]} 47.
Qxh5+ {[%clk 0:05:35.1]} 47... Kxh5 {[%clk 0:04:56.7]} 48. Re5+ {[%clk
0:05:31.4]} 48... Kh6 {[%clk 0:04:49.5]} 49. Qh3+ {[%clk 0:05:25.5]} 49... Kg7
{[%clk 0:04:50.5]} 50. a5 {[%clk 0:05:22.2]} 50... Nf6 {[%clk 0:04:40.7]} 51. a6
{[%clk 0:05:17.2]} 51... Nh7 {[%clk 0:04:20.9]} 52. a7 {[%clk 0:05:16.1]} 52...
Ra6 {[%clk 0:04:21.9]} 53. Qg4+ {[%clk 0:05:11.7]} 53... Kf6 {[%clk 0:04:16.1]}
54. Rf5+ {[%clk 0:04:59.5]} 54... Ke7 {[%clk 0:04:08.1]} 55. Qb4+ {[%clk
0:04:52.5]} 55... Rd6 {[%clk 0:03:52.9]} 56. Qb7+ {[%clk 0:04:51.1]} 56... Rd7
{[%clk 0:03:44.7]} 57. Rxf7+ {[%clk 0:04:48.2]} 1-0

[Event "Rapid della Domenica"]
[Site "Chess.com"]
[Date "2020.05.17"]
[Round "6"]
[White "SanSecondoPR"]
[Black "malberici"]
[Result "1-0"]
[WhiteElo "1315"]
[BlackElo "1437"]
[TimeControl "720+3"]
[EndTime "8:19:19 PDT"]
[Termination "SanSecondoPR ha vinto per abbandono"]

1. e4 {[%clk 0:12:02.9]} 1... Nf6 {[%clk 0:12:02.2]} 2. Nc3 {[%clk 0:12:00.6]}
2... e5 {[%clk 0:12:03]} 3. Nf3 {[%clk 0:11:59.9]} 3... Bc5 {[%clk 0:12:04.4]}
4. Nxe5 {[%clk 0:11:45.9]} 4... O-O {[%clk 0:12:06.5]} 5. d4 {[%clk 0:11:43.3]}
5... Bb6 {[%clk 0:12:04.2]} 6. Nf3 {[%clk 0:11:42.1]} 6... Re8 {[%clk
0:11:55.6]} 7. Bd3 {[%clk 0:11:40.1]} 7... d5 {[%clk 0:11:54.6]} 8. e5 {[%clk
0:11:37.9]} 8... Bg4 {[%clk 0:11:49.9]} 9. O-O {[%clk 0:11:35.5]} 9... Ne4
{[%clk 0:11:47.3]} 10. Be3 {[%clk 0:11:02.1]} 10... Bxf3 {[%clk 0:11:32.5]} 11.
Qxf3 {[%clk 0:10:59.8]} 11... c6 {[%clk 0:11:23.9]} 12. Bxe4 {[%clk 0:10:57]}
12... dxe4 {[%clk 0:11:25.1]} 13. Nxe4 {[%clk 0:10:53.6]} 13... Bxd4 {[%clk
0:11:12.1]} 14. Rad1 {[%clk 0:10:50.5]} 14... Qe7 {[%clk 0:10:31.6]} 15. Bxd4
{[%clk 0:10:47]} 15... Nd7 {[%clk 0:10:32.3]} 16. Nd6 {[%clk 0:10:41.8]} 16...
Nxe5 {[%clk 0:10:26.2]} 17. Bxe5 {[%clk 0:10:36.8]} 17... Qxe5 {[%clk
0:10:27.4]} 18. Nxe8 {[%clk 0:10:33.8]} 18... Rxe8 {[%clk 0:10:28.2]} 19. c3
{[%clk 0:10:09.9]} 19... h6 {[%clk 0:10:24.1]} 20. Qd3 {[%clk 0:10:09.1]} 20...
Qg5 {[%clk 0:10:21.9]} 21. Qd7 {[%clk 0:10:02.3]} 21... Rf8 {[%clk 0:10:17.4]}
22. Qxb7 {[%clk 0:09:54.1]} 22... f5 {[%clk 0:10:17]} 23. Qxc6 {[%clk
0:09:46.9]} 23... f4 {[%clk 0:10:18.1]} 24. Qd5+ {[%clk 0:09:46.7]} 1-0

[Event "Rapid della Domenica"]
[Site "Chess.com"]
[Date "2020.05.17"]
[Round "6"]
[White "sirmale49"]
[Black "sergiodone"]
[Result "0-1"]
[WhiteElo "1414"]
[BlackElo "1444"]
[TimeControl "720+3"]
[EndTime "8:20:59 PDT"]
[Termination "sergiodone ha vinto per scaccomatto"]

1. f4 {[%clk 0:12:01.1]} 1... c5 {[%clk 0:11:33.8]} 2. Nf3 {[%clk 0:12:02.2]}
2... d6 {[%clk 0:11:32.4]} 3. g3 {[%clk 0:12:03.6]} 3... Nc6 {[%clk 0:11:30.4]}
4. Bg2 {[%clk 0:12:04.1]} 4... Bd7 {[%clk 0:11:32.1]} 5. Nc3 {[%clk 0:12:04.9]}
5... e6 {[%clk 0:11:33.8]} 6. O-O {[%clk 0:12:06.1]} 6... Be7 {[%clk 0:11:35.3]}
7. e4 {[%clk 0:12:03]} 7... h5 {[%clk 0:11:36.7]} 8. d3 {[%clk 0:11:55.9]} 8...
h4 {[%clk 0:11:38.3]} 9. Qe1 {[%clk 0:11:16.5]} 9... h3 {[%clk 0:11:33.4]} 10.
Bh1 {[%clk 0:11:17.1]} 10... Nf6 {[%clk 0:11:32.3]} 11. Ng5 {[%clk 0:10:50.1]}
11... Ng4 {[%clk 0:11:09.3]} 12. Bf3 {[%clk 0:10:30.2]} 12... Nf6 {[%clk
0:10:58.7]} 13. e5 {[%clk 0:10:19]} 13... dxe5 {[%clk 0:10:26.6]} 14. fxe5
{[%clk 0:10:13.6]} 14... Nh5 {[%clk 0:09:34.4]} 15. Nxh3 {[%clk 0:09:52.9]}
15... Qb6 {[%clk 0:08:38.6]} 16. Be3 {[%clk 0:09:45.8]} 16... Qxb2 {[%clk
0:08:34.9]} 17. Rb1 {[%clk 0:09:44.1]} 17... Qxc2 {[%clk 0:08:29.1]} 18. Bxh5
{[%clk 0:09:21.7]} 18... Rxh5 {[%clk 0:08:26.5]} 19. Nf4 {[%clk 0:09:22.4]}
19... Qxh2# {[%clk 0:08:22.3]} 0-1

[Event "Rapid della Domenica"]
[Site "Chess.com"]
[Date "2020.05.17"]
[Round "6"]
[White "crippo"]
[Black "caramante"]
[Result "1-0"]
[WhiteElo "1561"]
[BlackElo "1564"]
[TimeControl "720+3"]
[EndTime "8:26:12 PDT"]
[Termination "crippo ha vinto per abbandono"]

1. e4 {[%clk 0:12:02.9]} 1... c5 {[%clk 0:11:50.7]} 2. Nc3 {[%clk 0:12:03.4]}
2... d6 {[%clk 0:11:52.6]} 3. Nf3 {[%clk 0:12:04.4]} 3... a6 {[%clk 0:11:54.5]}
4. a4 {[%clk 0:12:05]} 4... e6 {[%clk 0:11:56.5]} 5. Be2 {[%clk 0:12:05.8]} 5...
Nf6 {[%clk 0:11:58.1]} 6. d3 {[%clk 0:12:07.2]} 6... g6 {[%clk 0:12:00]} 7. Bg5
{[%clk 0:12:07.8]} 7... Bg7 {[%clk 0:12:00.6]} 8. O-O {[%clk 0:12:07.9]} 8...
Qc7 {[%clk 0:12:02.5]} 9. h3 {[%clk 0:12:02]} 9... O-O {[%clk 0:12:01.6]} 10.
Nh2 {[%clk 0:12:03.4]} 10... Nbd7 {[%clk 0:12:02.7]} 11. Kh1 {[%clk 0:11:52.8]}
11... h6 {[%clk 0:11:57.7]} 12. Bh4 {[%clk 0:11:53.6]} 12... Kh7 {[%clk
0:11:54.6]} 13. Bg3 {[%clk 0:11:50.1]} 13... Qb6 {[%clk 0:11:37.2]} 14. Rb1
{[%clk 0:11:43.6]} 14... e5 {[%clk 0:11:13.5]} 15. f4 {[%clk 0:10:54.8]} 15...
Qa5 {[%clk 0:10:54.5]} 16. fxe5 {[%clk 0:10:51.3]} 16... Nxe5 {[%clk 0:10:53.6]}
17. Ng4 {[%clk 0:10:48.6]} 17... Nexg4 {[%clk 0:10:53.7]} 18. Bxg4 {[%clk
0:10:48.4]} 18... Bxg4 {[%clk 0:10:51.7]} 19. hxg4 {[%clk 0:10:48.3]} 19... Qd8
{[%clk 0:10:44.3]} 20. Bh4 {[%clk 0:10:41.8]} 20... g5 {[%clk 0:10:43.3]} 21.
Bg3 {[%clk 0:10:42.7]} 21... Qd7 {[%clk 0:10:44.5]} 22. Rf5 {[%clk 0:10:36.7]}
22... Rae8 {[%clk 0:10:36.4]} 23. Qf3 {[%clk 0:10:25.4]} 23... b5 {[%clk
0:10:29.2]} 24. axb5 {[%clk 0:10:25.3]} 24... axb5 {[%clk 0:10:30.2]} 25. Rf1
{[%clk 0:09:43.9]} 25... Re6 {[%clk 0:10:20.3]} 26. Nd5 {[%clk 0:09:12.2]} 26...
Nxd5 {[%clk 0:09:27.2]} 27. Rxd5 {[%clk 0:09:13.2]} 27... Re7 {[%clk 0:09:28.9]}
28. Rxd6 {[%clk 0:09:03.3]} 28... Qb7 {[%clk 0:09:23.6]} 29. Qf5+ {[%clk
0:08:59.1]} 29... Kg8 {[%clk 0:09:23]} 30. b3 {[%clk 0:08:46.7]} 30... c4 {[%clk
0:09:07.3]} 31. bxc4 {[%clk 0:08:46.5]} 31... bxc4 {[%clk 0:09:08.5]} 32. Rd5
{[%clk 0:08:15.7]} 32... Rc7 {[%clk 0:09:02.6]} 33. Bxc7 {[%clk 0:08:08.7]}
33... Qxc7 {[%clk 0:09:03.6]} 34. e5 {[%clk 0:08:06.8]} 34... cxd3 {[%clk
0:09:03.8]} 35. cxd3 {[%clk 0:08:05.7]} 35... Qa7 {[%clk 0:08:46]} 36. Rd6
{[%clk 0:07:58.9]} 36... Qe3 {[%clk 0:08:43.9]} 37. d4 {[%clk 0:07:56.5]} 37...
Qg3 {[%clk 0:08:29.9]} 38. Qf3 {[%clk 0:07:55.2]} 38... Qh4+ {[%clk 0:08:09.6]}
39. Qh3 {[%clk 0:07:56.3]} 39... Re8 {[%clk 0:08:04.5]} 40. Qxh4 {[%clk
0:07:55.7]} 40... gxh4 {[%clk 0:08:04.9]} 41. Rd7 {[%clk 0:07:53.7]} 41... f6
{[%clk 0:08:05.3]} 42. exf6 {[%clk 0:07:50.7]} 42... Rf8 {[%clk 0:07:24.3]} 43.
Rxg7+ {[%clk 0:07:48.2]} 43... Kh8 {[%clk 0:07:23.3]} 44. Rc7 {[%clk 0:07:45.4]}
1-0

[Event "Rapid della Domenica"]
[Site "Chess.com"]
[Date "2020.05.17"]
[Round "6"]
[White "OMatteoWuO"]
[Black "fausto2p"]
[Result "1-0"]
[WhiteElo "1215"]
[BlackElo "1201"]
[TimeControl "720+3"]
[EndTime "8:30:59 PDT"]
[Termination "OMatteoWuO ha vinto per abbandono"]

1. d4 {[%clk 0:12:02.9]} 1... d5 {[%clk 0:11:59.6]} 2. c4 {[%clk 0:12:03.4]}
2... c6 {[%clk 0:11:59.1]} 3. Nc3 {[%clk 0:12:03.9]} 3... Nf6 {[%clk 0:12:00]}
4. Nf3 {[%clk 0:11:58]} 4... dxc4 {[%clk 0:12:00.5]} 5. e3 {[%clk 0:11:59.1]}
5... b5 {[%clk 0:11:52.5]} 6. a4 {[%clk 0:11:21.4]} 6... b4 {[%clk 0:11:40.6]}
7. Na2 {[%clk 0:11:21.5]} 7... b3 {[%clk 0:10:45.2]} 8. Nc3 {[%clk 0:11:20.6]}
8... Ba6 {[%clk 0:10:25.4]} 9. Ne5 {[%clk 0:11:07.4]} 9... e6 {[%clk 0:10:16.2]}
10. Bxc4 {[%clk 0:10:51.2]} 10... Bxc4 {[%clk 0:10:13.6]} 11. Nxc4 {[%clk
0:10:52.6]} 11... Bb4 {[%clk 0:10:11.1]} 12. Qxb3 {[%clk 0:10:50.7]} 12... a5
{[%clk 0:09:58.3]} 13. Bd2 {[%clk 0:10:39.4]} 13... O-O {[%clk 0:09:42.4]} 14.
Nxa5 {[%clk 0:10:40.8]} 14... Bxa5 {[%clk 0:09:31.5]} 15. Qb7 {[%clk 0:10:22.9]}
15... Ra6 {[%clk 0:08:53.9]} 16. b4 {[%clk 0:09:48.9]} 16... Rb6 {[%clk
0:08:38.8]} 17. Qa7 {[%clk 0:09:41.1]} 17... Bxb4 {[%clk 0:08:24.7]} 18. Rb1
{[%clk 0:09:32.2]} 18... Bxc3 {[%clk 0:08:12.2]} 19. Rxb6 {[%clk 0:09:18.9]}
19... Bxd2+ {[%clk 0:08:05.8]} 20. Kxd2 {[%clk 0:09:20.3]} 20... Nbd7 {[%clk
0:07:40.8]} 21. Rxc6 {[%clk 0:09:01.9]} 21... Ne4+ {[%clk 0:07:34.9]} 22. Ke2
{[%clk 0:09:02.6]} 22... Ndf6 {[%clk 0:06:54.3]} 23. Rhc1 {[%clk 0:08:46.8]}
23... Nd6 {[%clk 0:05:52.2]} 24. Qc5 {[%clk 0:07:55.1]} 24... Nfe4 {[%clk
0:05:38]} 25. Rxd6 {[%clk 0:07:50.5]} 25... Nxc5 {[%clk 0:05:05.9]} 26. Rxd8
{[%clk 0:07:51.3]} 26... Rxd8 {[%clk 0:05:06.7]} 27. Rxc5 {[%clk 0:07:52.5]}
27... g6 {[%clk 0:04:58.6]} 28. a5 {[%clk 0:07:53.1]} 28... Ra8 {[%clk
0:04:57.4]} 29. Kd3 {[%clk 0:07:54.4]} 29... Kf8 {[%clk 0:04:58.9]} 30. Kc4
{[%clk 0:07:56.2]} 30... Ke7 {[%clk 0:05:00.5]} 31. Kb5 {[%clk 0:07:53.3]} 31...
Rb8+ {[%clk 0:04:56.2]} 32. Kc6 {[%clk 0:07:41.4]} 32... Rb2 {[%clk 0:04:44.3]}
33. a6 {[%clk 0:07:40.3]} 33... Ra2 {[%clk 0:04:44.6]} 34. Kb7 {[%clk 0:07:16]}
34... Kd6 {[%clk 0:04:44.5]} 35. Rc6+ {[%clk 0:07:14.5]} 35... Kd5 {[%clk
0:04:40.3]} 36. a7 {[%clk 0:07:14.4]} 36... Ke4 {[%clk 0:04:38.8]} 37. a8=Q
{[%clk 0:07:14.8]} 37... Rxa8 {[%clk 0:04:39.4]} 38. Kxa8 {[%clk 0:07:15.5]}
38... h5 {[%clk 0:04:33.4]} 39. Rc7 {[%clk 0:07:10.9]} 39... f6 {[%clk
0:04:29.9]} 40. Re7 {[%clk 0:07:09.1]} 40... Kd5 {[%clk 0:04:26.2]} 41. Rg7
{[%clk 0:07:02.6]} 41... g5 {[%clk 0:04:26.3]} 42. Rg6 {[%clk 0:07:02.8]} 42...
e5 {[%clk 0:04:20.1]} 43. Rxf6 {[%clk 0:07:01.6]} 43... exd4 {[%clk 0:04:20.8]}
44. exd4 {[%clk 0:07:01.5]} 44... Kxd4 {[%clk 0:04:22]} 45. Rf5 {[%clk 0:07:02]}
45... g4 {[%clk 0:04:22.1]} 46. Rxh5 {[%clk 0:07:02.9]} 46... Kd3 {[%clk
0:04:22.7]} 47. f3 {[%clk 0:07:01.6]} 47... gxf3 {[%clk 0:04:21.4]} 48. gxf3
{[%clk 0:07:01.2]} 48... Ke3 {[%clk 0:04:22.8]} 49. Rf5 {[%clk 0:07:02.1]} 49...
Kf2 {[%clk 0:04:13.7]} 50. h4 {[%clk 0:07:02.3]} 50... Kg3 {[%clk 0:04:14.6]}
51. h5 {[%clk 0:07:03.7]} 51... Kh4 {[%clk 0:04:15.8]} 52. h6 {[%clk 0:07:04.7]}
1-0

[Event "Rapid della Domenica"]
[Site "Chess.com"]
[Date "2020.05.17"]
[Round "6"]
[White "pedrak"]
[Black "laremaro"]
[Result "1-0"]
[WhiteElo "1686"]
[BlackElo "1593"]
[TimeControl "720+3"]
[EndTime "8:31:40 PDT"]
[Termination "pedrak ha vinto per abbandono"]

1. d4 {[%clk 0:12:00.6]} 1... Nf6 {[%clk 0:12:01.1]} 2. Nf3 {[%clk 0:12:00.9]}
2... e6 {[%clk 0:12:03.4]} 3. Bf4 {[%clk 0:12:01.7]} 3... d5 {[%clk 0:12:02.7]}
4. e3 {[%clk 0:12:03.1]} 4... c5 {[%clk 0:12:03.3]} 5. c3 {[%clk 0:12:04.5]}
5... Qb6 {[%clk 0:12:02.3]} 6. Qb3 {[%clk 0:12:05.3]} 6... Qxb3 {[%clk
0:11:54.7]} 7. axb3 {[%clk 0:12:05.3]} 7... Nc6 {[%clk 0:11:57.1]} 8. Nbd2
{[%clk 0:12:02]} 8... Be7 {[%clk 0:11:56.7]} 9. Bd3 {[%clk 0:11:58.9]} 9... O-O
{[%clk 0:11:56.4]} 10. Ne5 {[%clk 0:11:56.6]} 10... Nxe5 {[%clk 0:11:55]} 11.
Bxe5 {[%clk 0:11:57.1]} 11... Ng4 {[%clk 0:11:31]} 12. Bg3 {[%clk 0:11:56.4]}
12... Bd7 {[%clk 0:11:20.7]} 13. O-O {[%clk 0:11:49.8]} 13... a6 {[%clk
0:11:18.4]} 14. h3 {[%clk 0:11:39.6]} 14... Nf6 {[%clk 0:11:19.7]} 15. Rfe1
{[%clk 0:11:05.1]} 15... Bc6 {[%clk 0:10:32.2]} 16. dxc5 {[%clk 0:10:12.8]}
16... Bxc5 {[%clk 0:10:29.3]} 17. b4 {[%clk 0:10:14.4]} 17... Be7 {[%clk
0:10:25.1]} 18. Nb3 {[%clk 0:10:15]} 18... Ne4 {[%clk 0:09:00.1]} 19. Bf4 {[%clk
0:09:55.6]} 19... Rfc8 {[%clk 0:07:50.5]} 20. Na5 {[%clk 0:09:50.6]} 20... Nd6
{[%clk 0:07:24.4]} 21. Bxd6 {[%clk 0:09:27.8]} 21... Bxd6 {[%clk 0:07:24.2]} 22.
Nxc6 {[%clk 0:09:28.4]} 22... bxc6 {[%clk 0:07:09.4]} 23. Bxa6 {[%clk
0:09:17.5]} 23... Rcb8 {[%clk 0:06:56]} 24. Bd3 {[%clk 0:09:06.8]} 24... Rxa1
{[%clk 0:06:37.2]} 25. Rxa1 {[%clk 0:09:07.4]} 25... Rc8 {[%clk 0:06:17.8]} 26.
Ra6 {[%clk 0:09:05.3]} 26... Be5 {[%clk 0:06:14]} 27. f4 {[%clk 0:08:56.1]}
27... Bf6 {[%clk 0:06:09]} 28. Kf2 {[%clk 0:08:43.3]} 28... g6 {[%clk
0:05:58.9]} 29. Ke2 {[%clk 0:08:27.5]} 29... h5 {[%clk 0:06:00.3]} 30. g4 {[%clk
0:08:21]} 30... hxg4 {[%clk 0:05:59]} 31. hxg4 {[%clk 0:08:22.2]} 31... Kf8
{[%clk 0:05:54.2]} 32. f5 {[%clk 0:08:12.9]} 32... gxf5 {[%clk 0:05:45.3]} 33.
gxf5 {[%clk 0:08:14.1]} 33... e5 {[%clk 0:05:41.9]} 34. b5 {[%clk 0:07:57.5]}
34... Bd8 {[%clk 0:05:27.6]} 35. bxc6 {[%clk 0:07:52.8]} 35... Ke7 {[%clk
0:05:22.4]} 36. b4 {[%clk 0:07:53.4]} 36... Kd6 {[%clk 0:05:21.9]} 37. b5 {[%clk
0:07:44.3]} 37... Kc5 {[%clk 0:05:22]} 38. Ra7 {[%clk 0:07:33.5]} 38... e4
{[%clk 0:05:00.3]} 39. Bc2 {[%clk 0:07:16.8]} 39... Kxb5 {[%clk 0:05:01.8]} 40.
Kd2 {[%clk 0:07:09.7]} 40... f6 {[%clk 0:04:56]} 41. Ba4+ {[%clk 0:07:06.5]}
41... Kb6 {[%clk 0:04:26.8]} 42. Rb7+ {[%clk 0:07:02.2]} 42... Kc5 {[%clk
0:04:25.1]} 43. Ra7 {[%clk 0:06:08.8]} 43... Kb6 {[%clk 0:04:04.2]} 44. Rb7+
{[%clk 0:06:06.7]} 44... Kc5 {[%clk 0:04:05.1]} 45. Kc2 {[%clk 0:06:08.3]} 45...
Ba5 {[%clk 0:03:58.1]} 46. Rb5+ {[%clk 0:06:03]} 1-0